bitfinex/quotes_ETHUSD_20250526
["timestamp","ask_amount","ask_price","bid_price","bid_amount"]
[1748302733958,0.7525,2562.2,2561.9,2.68949562]
[1748302734167,3.901,2562.1,2562.0,2.68949562]
[1748302734540,3.901,2562.1,2562.0,3.06273782]
[1748302735454,4.14,2562.3,2562.0,3.06273782]
[1748302735630,3.901,2562.2,2562.0,3.06273782]
[1748302737163,3.901,2562.2,2562.1,0.3732422]
[1748302739578,3.901,2562.2,2562.0,2.68949562]
[1748302739753,4.141,2562.1,2562.0,2.68949562]
[1748302741380,4.141,2562.1,2562.0,3.06265965]
[1748302746289,4.141,2562.1,2562.0,0.37316403]
[1748302746450,4.9452,2562.1,2562.0,0.37316403]
[1748302746783,5.7504,2562.1,2562.0,0.37316403]
[1748302747751,5.7504,2562.1,2561.8,2.68949562]
[1748302748063,4.9462,2562.1,2561.8,2.68949562]
[1748302748885,4.9462,2562.1,2561.9,0.37335266]
[1748302750382,4.9462,2562.1,2561.8,2.68949562]
[1748302751379,4.9462,2562.1,2562.0,2.68949562]
[1748302751584,8.8482,2562.1,2562.0,2.68949562]
[1748302751952,8.8482,2562.1,2561.6,0.46447539]
[1748302752158,8.8482,2562.1,2561.8,2.68949562]
[1748302752895,8.8482,2562.1,2561.9,0.37360725]
[1748302753767,9.73302,2562.1,2561.9,0.37360725]
[1748302754291,9.73302,2562.1,2561.4,2.68949562]
[1748302755597,0.04870533,2562.0,2561.5,0.37358186]
[1748302757095,9.73302,2562.1,2561.6,0.37358186]
[1748302757296,0.04870533,2562.0,2561.6,0.37358186]
[1748302757485,1.02687786,2562.0,2561.6,0.37358186]
[1748302758196,1.02687786,2562.0,2561.4,2.68949562]
[1748302758798,0.8285,2561.9,2561.4,2.68949562]
[1748302759377,0.04870533,2561.8,2561.5,0.37333732]
[1748302759678,0.8285,2561.9,2561.5,0.37333732]
[1748302760504,0.04870533,2561.8,2561.5,0.37333732]
[1748302760665,0.8285,2561.9,2561.5,0.37333732]
[1748302760871,0.8285,2561.9,2561.6,0.37333732]
[1748302761469,1.81833779,2561.9,2561.6,0.37333732]
[1748302762072,1.81833779,2561.9,2561.5,2.68949562]
[1748302763413,7.66889134,2563.6,2561.2,0.46447539]
[1748302763414,0.7955,2563.0,2561.8,2.68949562]
[1748302763569,4.19046,2562.9,2562.6,2.68949562]
[1748302763904,4.19046,2562.9,2562.8,2.68949562]
[1748302763905,8.09246,2562.9,2562.8,2.68949562]
[1748302764479,4.19046,2562.9,2562.8,2.68949562]
[1748302764684,8.09246,2562.9,2562.8,2.68949562]
[1748302766577,8.981256,2562.9,2562.6,2.68949562]
[1748302768113,4.19046,2562.9,2562.6,2.68949562]
[1748302768418,4.19046,2562.9,2562.8,2.68949562]
[1748302768822,8.09146,2562.9,2562.8,2.68949562]
[1748302769110,4.19046,2562.9,2562.8,2.68949562]
[1748302769611,8.09146,2562.9,2562.8,2.68949562]
[1748302769775,4.19046,2562.9,2562.8,2.95844518]
[1748302770897,4.19046,2562.9,2562.5,0.7945]
[1748302771097,4.19046,2562.9,2562.6,2.68949562]
[1748302771988,3.97046,2562.9,2562.8,2.68949562]
[1748302773117,0.06946,2562.9,2562.8,2.68949562]
[1748302777539,0.7969,2562.8,2562.5,2.68949562]
[1748302778910,0.06946,2562.9,2562.5,2.68949562]
[1748302780543,0.06946,2562.9,2562.2,1.25317539]
[1748302780712,0.06946,2562.9,2562.5,2.68949562]
[1748302783647,0.8318,2562.7,2562.2,3.15397101]
[1748302783812,3.9,2562.6,2562.2,3.15397101]
[1748302785046,3.9,2562.6,2562.2,2.68949562]
[1748302786053,0.06946,2562.9,2562.5,2.68949562]
[1748302786231,8.055,2562.8,2562.7,2.68949562]
[1748302786616,8.055,2562.8,2562.1,8.8078]
[1748302786838,8.04970755,2562.8,2562.6,2.68949562]
[1748302788424,7.77425271,2562.8,2562.6,2.68949562]
[1748302790559,7.59672853,2562.8,2562.6,2.68949562]
[1748302791367,3.69572853,2562.8,2562.6,2.68949562]
[1748302791565,7.59672853,2562.8,2562.6,2.68949562]
[1748302793567,3.69572853,2562.8,2562.6,2.68949562]
[1748302793867,7.59672853,2562.8,2562.6,2.68949562]
[1748302794731,7.59672853,2562.8,2562.7,0.37298086]
[1748302795832,8.44417738,2562.8,2562.7,0.37298086]
[1748302796032,8.44417738,2562.8,2562.1,0.8078]
[1748302796033,9.75607738,2562.8,2562.2,3.15397101]
[1748302796232,0.55,2562.7,2562.2,3.15397101]
[1748302798173,0.55,2562.7,2562.3,0.37300346]
[1748302798372,0.55,2562.7,2562.4,2.68949562]
[1748302799781,1.53255374,2562.7,2562.4,2.68949562]
[1748302804091,3.901,2562.6,2562.4,2.68949562]
[1748302808601,1.3738,2562.5,2561.9,3.15397101]
[1748302808789,1.3738,2562.5,2561.9,0.46447539]
[1748302808790,0.8238,2562.3,2561.9,0.46447539]
[1748302808993,0.87250533,2562.3,2561.9,3.15397101]
[1748302809572,0.87250533,2562.3,2561.9,2.68949562]
[1748302810614,0.8238,2562.3,2561.9,2.68949562]
[1748302812171,0.98255374,2562.7,2562.1,2.68949562]
[1748302812375,0.8238,2562.5,2562.4,2.68949562]
[1748302812767,4.7248,2562.5,2562.4,2.68949562]
[1748302813129,4.7248,2562.5,2562.2,2.68949562]
[1748302813887,4.7248,2562.5,2562.1,2.68949562]
[1748302814240,4.7248,2562.5,2561.9,0.8086]
[1748302814241,1.43638,2562.4,2561.9,2.68949562]
[1748302814904,1.48508533,2562.4,2561.9,2.68949562]
[1748302815104,0.7516,2562.3,2561.9,2.68949562]
[1748302818427,0.7516,2562.3,2562.1,2.68949562]
[1748302818634,3.901,2562.3,2562.1,2.68949562]
[1748302822335,0.7666,2562.5,2562.1,2.68949562]
[1748302822532,3.901,2562.4,2562.1,2.68949562]
[1748302822853,3.901,2562.4,2562.3,2.68949562]
[1748302823443,4.139,2562.6,2562.3,2.68949562]
[1748302823626,3.901,2562.5,2562.3,2.68949562]
[1748302825239,4.139,2562.6,2562.3,2.68949562]
[1748302825627,4.139,2562.6,2562.5,2.68949562]
[1748302827749,4.139,2562.6,2562.5,3.06243373]
[1748302829074,4.139,2562.6,2562.5,2.68949562]
[1748302834567,3.901,2562.7,2562.5,2.68949562]
[1748302834568,0.06946,2562.9,2562.5,2.68949562]
[1748302834866,8.09246,2562.9,2562.8,2.68949562]
[1748302835372,4.19146,2562.9,2562.8,2.68949562]
[1748302835601,8.09246,2562.9,2562.8,2.68949562]
[1748302835896,4.19146,2562.9,2562.8,2.68949562]
[1748302836179,4.19146,2562.9,2562.8,3.03390518]
[1748302836338,4.19146,2562.9,2562.8,2.68949562]
[1748302837246,4.19146,2562.9,2562.7,2.68949562]
[1748302839550,4.24016533,2562.9,2562.7,2.68949562]
[1748302839750,4.19146,2562.9,2562.7,2.68949562]
[1748302846400,8.09146,2562.9,2562.7,2.68949562]
[1748302855205,8.09146,2562.9,2562.4,0.7806]
[1748302855370,8.09146,2562.9,2562.6,2.68949562]
[1748302857205,8.09146,2562.9,2562.7,0.37339785]
[1748302858690,8.09146,2562.9,2562.6,2.68949562]
[1748302861895,8.09146,2562.9,2562.7,0.3734946]
[1748302862090,8.09146,2562.9,2562.8,2.68949562]
[1748302862928,8.09146,2562.9,2562.8,3.06299022]
[1748302863833,4.19146,2562.9,2562.8,3.06299022]
[1748302864123,4.19146,2562.9,2562.8,4.12648924]
[1748302865091,4.19146,2562.9,2562.8,3.06299022]
[1748302865328,4.19146,2562.9,2562.8,0.3734946]
[1748302869194,4.79016533,2562.9,2562.8,0.3734946]
[1748302869418,5.60736533,2562.9,2562.8,0.3734946]
[1748302869727,5.55866,2562.9,2562.8,0.3734946]
[1748302870025,6.504526,2562.9,2562.8,0.3734946]
[1748302870413,0.55,2562.8,2562.5,2.68949562]
[1748302873621,8.022,2562.7,2562.5,2.68949562]
[1748302874143,8.022,2562.7,2562.5,3.49789562]
[1748302875031,8.022,2562.7,2562.6,0.37311285]
[1748302877242,0.06946,2562.9,2562.6,0.7602137]
[1748302877449,0.06946,2562.9,2562.8,2.68949562]
[1748302878004,0.06946,2562.9,2562.8,3.06260847]
[1748302883235,3.97046,2562.9,2562.8,3.06260847]
[1748302884462,0.06946,2562.9,2562.8,3.06260847]
[1748302887736,0.06946,2562.9,2562.8,0.37311285]
[1748302894879,0.06946,2562.9,2562.7,2.68949562]
[1748302902257,0.06946,2562.9,2562.8,0.26894956]
[1748302902598,0.06946,2562.9,2562.8,0.64214303]
[1748302904078,3.96946,2562.9,2562.8,0.64214303]
[1748302904584,3.96946,2562.9,2562.8,0.37319347]
[1748302905489,3.96946,2562.9,2562.8,3.06268909]
[1748302906799,4.01816533,2562.9,2562.8,0.37319347]
[1748302907103,4.73526,2562.9,2562.8,0.37319347]
[1748302911475,5.28526,2562.9,2562.8,0.37319347]
[1748302911675,6.225886,2562.9,2562.4,2.68949562]
[1748302912287,6.27459133,2562.9,2562.4,2.68949562]
[1748302912498,6.225886,2562.9,2562.4,2.68949562]
[1748302912807,6.225886,2562.9,2562.5,0.37337168]
[1748302914535,6.225886,2562.9,2562.4,2.68949562]
[1748302915024,1.0346886,2562.8,2562.4,2.68949562]
[1748302915169,5.33396533,2562.9,2562.4,2.68949562]
[1748302916426,0.55,2562.8,2562.4,2.68949562]
[1748302918333,3.901,2562.7,2562.6,2.68949562]
[1748302919076,4.12,2562.8,2562.6,2.68949562]
[1748302919281,3.901,2562.7,2562.6,3.50349562]
[1748302919508,3.901,2562.7,2562.6,3.85774756]
[1748302919725,3.901,2562.7,2562.6,4.23078929]
[1748302919937,4.12,2562.8,2562.6,4.23078929]
[1748302920147,8.021,2562.8,2562.6,4.23078929]
[1748302920695,8.021,2562.8,2562.7,0.37304173]
[1748302920894,4.12,2562.8,2562.7,0.37304173]
[1748302921104,4.12,2562.8,2562.7,0.79612066]
[1748302924323,4.12,2562.8,2562.7,0.37304173]
[1748302928966,4.12,2562.8,2562.7,1.18554173]
[1748302931160,0.06946,2562.9,2562.7,1.18554173]
[1748302931345,0.06946,2562.9,2562.8,2.68949562]
[1748302932460,0.06946,2562.9,2562.8,14.18839124]
[1748302932664,0.06946,2562.9,2562.8,14.56143297]
[1748302933732,0.06946,2562.9,2562.8,11.87193735]
[1748302934328,0.06946,2562.9,2562.8,14.56143297]
[1748302934681,0.06946,2562.9,2562.8,11.87193735]
[1748302935867,0.06946,2562.9,2562.8,12.33695928]
[1748302936177,0.06946,2562.9,2562.8,3.52755928]
[1748302936975,0.06946,2562.9,2562.8,2.68949562]
[1748302943805,0.06946,2562.9,2562.6,2.68949562]
[1748302944359,0.06946,2562.9,2562.3,0.46502193]
[1748302944663,0.7515,2562.8,2562.3,3.15451755]
[1748302945058,0.04870533,2562.7,2562.1,2.68949562]
[1748302945266,0.795,2562.6,2562.3,2.68949562]
[1748302945468,3.9,2562.5,2562.3,2.68949562]
[1748302946578,3.9,2562.5,2562.1,2.68949562]
[1748302947051,4.117,2562.4,2562.1,2.68949562]
[1748302947480,4.117,2562.5,2562.3,2.68949562]
[1748302947686,3.9,2562.4,2562.3,2.68949562]
[1748302951103,4.118,2562.5,2562.3,2.68949562]
[1748302951417,3.901,2562.5,2562.3,2.68949562]
[1748302958316,3.901,2562.4,2562.3,2.68949562]
[1748302958472,3.901,2562.4,2562.3,3.08175399]
[1748302959921,0.8231,2562.8,2562.3,3.08175399]
[1748302960119,3.901,2562.4,2562.2,0.7688]
[1748302960323,3.901,2562.4,2562.3,2.68949562]
[1748302963594,4.116,2562.6,2562.3,2.68949562]
[1748302963928,3.901,2562.4,2562.2,0.7688]
[1748302965023,3.901,2562.4,2562.3,3.0617727]
[1748302976449,4.116,2562.6,2562.3,3.0617727]
[1748302976677,3.901,2562.4,2562.3,0.37227708]
[1748302976832,8.0,2563.3,2562.3,0.37227708]
[1748302976833,4.8887,2563.0,2562.3,3.8277727]
[1748302977147,4.116,2563.0,2562.8,2.68949562]
[1748302977852,4.116,2563.0,2562.8,3.0617727]
[1748302980550,4.116,2563.0,2562.8,0.37227708]
[1748302980928,0.86866,2562.9,2562.8,0.37227708]
[1748302981128,1.757226,2562.9,2562.8,0.37227708]
[1748302981455,1.757226,2562.9,2562.6,0.37227708]
[1748302981752,0.86866,2562.9,2562.6,0.37227708]
[1748302986114,0.55,2562.8,2562.6,0.37227708]
[1748302986319,4.7133,2562.7,2562.6,0.37227708]
[1748302987045,4.7133,2562.7,2562.3,0.37227708]
[1748302992025,4.113,2562.6,2562.3,0.37227708]
[1748302994673,5.05063,2562.6,2562.3,0.37227708]
[1748302996476,0.801,2562.5,2562.3,0.37227708]
[1748302997372,0.801,2562.5,2562.1,0.37227708]
[1748302998789,0.801,2562.5,2562.2,0.37227708]
[1748302999986,0.801,2562.5,2562.1,0.37227708]
[1748303000209,0.585163,2562.4,2562.1,0.37227708]
[1748303000853,3.901,2562.3,2562.2,2.68949562]
[1748303001373,3.901,2562.3,2562.2,3.0617727]
[1748303005807,3.901,2562.3,2562.2,2.68949562]
[1748303006503,3.901,2562.3,2562.0,2.68949562]
[1748303007160,3.901,2562.3,2562.1,0.37272449]
[1748303007357,4.3712,2562.3,2562.1,0.37272449]
[1748303008004,8.4852,2562.3,2562.1,0.37272449]
[1748303008314,8.4852,2562.3,2562.0,2.68949562]
[1748303008807,0.4702,2562.3,2562.0,2.68949562]
[1748303009018,3.901,2562.2,2561.7,0.7963]
[1748303009171,0.86180533,2562.1,2561.6,0.46502193]
[1748303009503,0.8131,2562.1,2561.6,0.46502193]
[1748303010403,0.8131,2562.1,2561.7,0.37312739]
[1748303010577,1.69591,2562.1,2561.7,3.06262301]
[1748303011556,1.69591,2562.1,2561.7,2.68949562]
[1748303017302,1.69591,2562.1,2561.5,2.68949562]
[1748303017820,1.69591,2562.1,2561.7,2.68949562]
[1748303018320,0.7526,2561.9,2561.6,0.37292103]
[1748303018544,1.3026,2561.7,2561.6,0.37292103]
[1748303018720,5.2046,2561.7,2561.6,0.37292103]
[1748303019027,5.72993053,2561.7,2561.6,0.37292103]
[1748303019197,0.7526,2561.5,2560.9,4.64288027]
[1748303019404,4.111,2561.4,2560.9,4.64288027]
[1748303020411,0.7526,2561.2,2560.9,1.95338465]
[1748303020747,3.902,2561.1,2560.9,1.95338465]
[1748303021273,4.42246,2561.1,2560.9,1.95338465]
[1748303023357,4.42246,2561.1,2560.6,2.68949562]
[1748303024837,3.902,2561.0,2560.6,2.68949562]
[1748303025244,3.902,2561.0,2560.8,2.68949562]
[1748303026151,0.52046,2561.1,2560.8,2.68949562]
[1748303026354,8.015,2561.0,2560.8,2.68949562]
[1748303033262,4.112,2561.0,2560.8,2.68949562]
[1748303033571,3.903,2560.9,2560.8,2.68949562]
[1748303040982,4.112,2561.3,2560.9,0.7952]
[1748303041286,4.112,2561.3,2561.2,2.68949562]
[1748303041579,8.015,2561.3,2561.2,2.68949562]
[1748303043277,0.7822,2561.5,2561.2,2.68949562]
[1748303043437,3.903,2561.3,2561.2,2.68949562]
[1748303043769,0.7822,2561.5,2561.2,2.68949562]
[1748303044072,3.903,2561.3,2561.2,2.68949562]
[1748303044983,4.112,2561.4,2561.2,2.68949562]
[1748303045270,3.903,2561.3,2561.2,2.68949562]
[1748303045775,4.78272,2561.3,2560.8,2.68949562]
[1748303047177,4.78272,2561.3,2560.9,0.37308264]
[1748303048274,4.78272,2561.3,2561.0,0.37308264]
[1748303049579,4.78272,2561.3,2560.8,2.68949562]
[1748303049750,3.903,2561.3,2560.8,2.68949562]
[1748303050973,3.903,2561.3,2560.9,0.3735859]
[1748303052377,3.903,2561.3,2560.8,2.68949562]
[1748303052378,3.903,2561.3,2561.0,0.3735859]
[1748303053579,0.85700533,2561.2,2560.6,3.97801755]
[1748303053808,1.69550053,2561.2,2560.6,3.15451755]
[1748303054132,0.04870533,2561.1,2560.6,3.15451755]
[1748303054335,1.69550053,2561.2,2560.6,3.15451755]
[1748303055091,8.011,2561.1,2560.6,3.15451755]
[1748303055240,8.011,2561.0,2560.7,0.37369502]
[1748303056582,8.011,2561.0,2560.8,3.06319064]
[1748303057453,8.011,2561.0,2560.8,2.68949562]
[1748303068306,8.98165005,2561.0,2560.6,2.68949562]
[1748303068624,0.7806,2560.9,2560.7,0.37369094]
[1748303070743,0.7806,2560.9,2560.6,2.68949562]
[1748303074328,0.7806,2560.9,2560.7,0.37372205]
[1748303075329,0.7806,2560.9,2560.6,2.68949562]
[1748303078148,0.7806,2560.9,2560.7,0.37383507]
[1748303078356,4.109,2560.8,2560.7,0.37383507]
[1748303085384,5.90263034,2560.8,2560.7,0.37383507]
[1748303085542,6.45263034,2560.8,2560.7,0.37383507]
[1748303085743,6.40392501,2560.8,2560.7,0.37383507]
[1748303086372,0.55,2560.7,2560.1,3.25451755]
[1748303086559,3.904,2560.6,2560.1,3.25451755]
[1748303086762,4.9347925,2560.6,2560.1,3.25451755]
[1748303087872,4.9347925,2560.6,2560.2,0.37399422]
[1748303089404,4.9347925,2560.6,2560.3,0.37399422]
[1748303090215,4.9347925,2560.6,2560.3,3.06348984]
[1748303090806,4.9347925,2560.6,2560.4,0.37399422]
[1748303091915,4.9347925,2560.6,2560.3,2.68949562]
[1748303092413,1.0307925,2560.6,2560.3,2.68949562]
[1748303092637,4.105,2560.9,2560.5,2.68949562]
[1748303092777,4.105,2560.9,2560.7,2.68949562]
[1748303092778,3.904,2560.8,2560.7,2.68949562]
[1748303096697,3.904,2560.8,2560.7,3.06327602]
[1748303099740,1.3702,2561.3,2560.7,3.86677602]
[1748303099939,4.105,2560.9,2560.7,3.86677602]
[1748303100109,3.904,2560.8,2560.7,3.86677602]
[1748303100311,1.3702,2561.3,2560.7,4.25345362]
[1748303100510,4.105,2561.2,2561.0,2.68949562]
[1748303100734,3.904,2561.1,2561.0,2.68949562]
[1748303101437,3.904,2561.1,2561.0,3.06327602]
[1748303102135,4.105,2561.2,2561.0,3.06327602]
[1748303102437,4.105,2561.2,2561.1,0.3737804]
[1748303102609,8.009,2561.2,2561.1,0.3737804]
[1748303103745,4.105,2561.4,2561.1,0.3737804]
[1748303103905,4.105,2561.4,2561.3,2.68949562]
[1748303104111,8.008,2561.4,2561.3,2.68949562]
[1748303104307,9.2424,2561.9,2561.3,3.48129562]
[1748303104559,4.105,2561.6,2561.5,2.68949562]
[1748303106328,4.105,2561.6,2561.5,3.06327602]
[1748303107519,4.105,2561.6,2561.5,2.68949562]
[1748303109732,8.008,2561.6,2561.5,2.68949562]
[1748303110056,4.105,2561.6,2561.5,2.68949562]
[1748303110355,8.008,2561.6,2561.5,2.68949562]
[1748303111358,8.008,2561.6,2561.5,3.03762518]
[1748303112037,8.432,2561.9,2561.5,3.03762518]
[1748303112363,8.003,2561.8,2561.7,2.68949562]
[1748303113460,8.003,2561.8,2561.5,2.68949562]
[1748303116841,0.825,2561.7,2561.1,3.49569562]
[1748303117041,0.825,2561.5,2560.9,3.15451755]
[1748303117367,3.902,2561.4,2560.9,3.15451755]
[1748303118031,3.902,2561.4,2560.9,2.68949562]
[1748303119769,3.902,2561.4,2561.1,2.68949562]
[1748303120226,4.1,2561.4,2561.3,2.68949562]
[1748303120427,8.002,2561.4,2561.3,2.68949562]
[1748303121768,3.902,2561.4,2561.3,2.68949562]
[1748303122368,0.7663,2561.7,2561.3,2.68949562]
[1748303122572,3.903,2561.4,2561.3,2.68949562]
[1748303124967,4.1,2561.5,2561.3,2.68949562]
[1748303125127,3.903,2561.4,2561.3,3.06475014]
[1748303126055,3.903,2561.4,2561.3,3.43688038]
[1748303126369,3.903,2561.4,2561.3,3.06162586]
[1748303126885,3.903,2561.4,2561.3,0.37213024]
[1748303127576,3.903,2561.4,2561.0,2.68949562]
[1748303129702,0.7501,2561.3,2560.9,2.68949562]
[1748303133806,0.7501,2561.3,2560.6,0.7519]
[1748303134006,0.7501,2561.3,2561.0,2.68949562]
[1748303134244,1.62541,2561.3,2561.0,2.68949562]
[1748303135139,1.3564,2561.2,2560.6,2.68949562]
[1748303136339,1.3564,2561.2,2560.8,2.68949562]
[1748303136644,0.8064,2561.2,2560.8,2.68949562]
[1748303137831,4.1,2561.1,2560.8,2.68949562]
[1748303138033,3.903,2561.0,2560.8,2.68949562]
[1748303138743,3.903,2561.0,2560.8,3.75804518]
[1748303139937,3.903,2561.0,2560.8,2.95844518]
[1748303140139,3.903,2561.0,2560.8,2.68949562]
[1748303140463,3.903,2561.0,2560.6,2.68949562]
[1748303140632,0.80010533,2560.9,2560.4,0.46502193]
[1748303140831,0.80010533,2560.9,2560.2,3.15451755]
[1748303140832,0.7514,2560.9,2560.2,3.15451755]
[1748303141045,0.7514,2560.7,2560.2,3.15451755]
[1748303141259,0.8316,2560.5,2560.2,0.46502193]
[1748303141457,8.0,2560.4,2560.2,0.46502193]
[1748303141670,8.0,2560.4,2560.1,0.1]
[1748303141819,8.88316,2560.4,2560.1,0.1]
[1748303145052,8.0,2560.4,2560.1,0.1]
[1748303148666,0.8316,2560.5,2560.2,2.68949562]
[1748303148829,8.002,2560.4,2560.2,2.68949562]
[1748303149568,4.098,2560.4,2560.2,2.68949562]
[1748303149767,8.002,2560.4,2560.2,2.68949562]
[1748303149952,8.002,2560.4,2560.3,0.35680956]
[1748303150353,3.904,2560.5,2560.3,0.35680956]
[1748303150555,3.904,2560.5,2560.4,2.68949562]
[1748303151869,0.8037,2560.9,2560.5,0.7994]
[1748303151870,4.098,2560.9,2560.5,0.7994]
[1748303152072,3.904,2560.8,2560.6,0.38793888]
[1748303152271,3.904,2560.8,2560.7,2.68949562]
[1748303156378,3.904,2560.8,2560.5,2.68949562]
[1748303156755,3.904,2560.8,2560.3,2.68949562]
[1748303157167,3.904,2560.8,2560.5,2.68949562]
[1748303160616,3.904,2560.8,2560.3,2.68949562]
[1748303162811,4.9261,2560.9,2560.3,2.68949562]
[1748303163126,8.002,2560.8,2560.5,2.68949562]
[1748303163324,1.3216,2561.2,2560.5,3.47059562]
[1748303163489,4.098,2560.8,2560.5,3.47059562]
[1748303163817,0.7716,2561.2,2560.7,2.68949562]
[1748303163977,4.098,2560.8,2560.7,2.68949562]
[1748303165132,8.002,2560.8,2560.7,2.68949562]
[1748303165501,4.098,2560.8,2560.7,2.68949562]
[1748303165728,4.098,2561.3,2560.7,3.04046028]
[1748303165925,4.098,2561.3,2561.2,2.68949562]
[1748303167340,4.098,2561.3,2561.2,3.06165067]
[1748303167713,8.0,2562.1,2561.2,3.06165067]
[1748303167902,10.38798913,2562.0,2561.5,2.68949562]
[1748303168101,10.38798913,2562.0,2561.3,3.50429562]
[1748303168302,10.38798913,2562.0,2561.3,2.68949562]
[1748303168824,6.48498913,2562.0,2561.3,2.68949562]
[1748303169037,3.903,2561.9,2561.3,2.68949562]
[1748303169242,4.71081138,2561.9,2561.3,2.68949562]
[1748303169419,4.71081138,2561.9,2560.8,8.46502193]
[1748303169420,0.55,2561.7,2560.9,3.46729562]
[1748303169602,0.7714,2561.6,2560.7,3.93231755]
[1748303169942,0.7714,2561.6,2560.9,2.68949562]
[1748303170453,0.8263,2561.4,2560.9,2.68949562]
[1748303170729,0.8263,2561.4,2560.7,0.46502193]
[1748303170730,7.997,2561.3,2560.7,2.68949562]
[1748303171300,7.997,2561.3,2560.7,3.03720518]
[1748303171613,7.997,2561.3,2560.9,2.68949562]
[1748303186896,4.094,2561.3,2560.9,2.68949562]
[1748303187179,3.903,2561.2,2561.1,2.68949562]
[1748303187475,4.094,2561.3,2561.1,2.68949562]
[1748303187653,7.997,2561.3,2561.1,3.06206733]
[1748303188883,7.997,2561.3,2561.2,0.37257171]
[1748303192084,4.094,2561.3,2561.2,0.37257171]
[1748303192377,9.1963,2561.3,2561.2,0.37257171]
[1748303192755,9.1963,2561.3,2560.7,2.68949562]
[1748303192942,8.7869,2561.3,2560.7,2.68949562]
[1748303193144,8.7869,2561.3,2560.9,2.68949562]
[1748303197067,8.7869,2561.3,2561.0,0.37304115]
[1748303198482,8.7869,2561.3,2560.9,2.68949562]
[1748303201481,8.7869,2561.3,2561.0,0.37326336]
[1748303202489,0.7989,2561.2,2561.0,0.37326336]
[1748303202852,0.7989,2561.2,2560.7,2.68949562]
[1748303204504,0.7989,2561.2,2560.8,0.37314145]
[1748303205788,0.7989,2561.2,2560.7,2.68949562]
[1748303208312,0.7989,2561.2,2560.8,0.37300821]
[1748303208819,1.766359,2561.2,2560.8,0.37300821]
[1748303209343,0.8027,2561.1,2560.8,0.37300821]
[1748303210047,0.8027,2561.1,2560.7,2.68949562]
[1748303211023,4.092,2561.0,2560.7,2.68949562]
[1748303211319,3.903,2560.9,2560.7,2.68949562]
[1748303212298,4.092,2561.0,2560.7,2.68949562]
[1748303212497,3.903,2560.9,2560.7,0.26894956]
[1748303212685,4.092,2561.0,2560.9,2.68949562]
[1748303213032,7.995,2561.0,2560.9,3.06219352]
[1748303216221,4.092,2561.0,2560.9,3.06219352]
[1748303216420,7.995,2561.0,2560.9,3.06219352]
[1748303221712,3.903,2561.0,2560.9,3.06219352]
[1748303222223,4.092,2561.2,2560.9,3.36841287]
[1748303222526,4.092,2561.2,2561.1,2.68949562]
[1748303222929,4.092,2561.2,2561.1,3.48879562]
[1748303223916,4.092,2561.2,2560.9,0.3726979]
[1748303224123,4.092,2561.2,2561.1,0.3726979]
[1748303224931,4.75924281,2561.2,2561.1,0.3726979]
[1748303225109,4.75924281,2561.2,2560.6,3.15451755]
[1748303225697,0.7533,2561.1,2560.6,3.15451755]
[1748303226330,0.7533,2561.1,2560.7,1.95338465]
[1748303226637,0.7533,2561.1,2560.7,2.32628135]
[1748303227330,0.7533,2561.1,2560.8,0.3728967]
[1748303227536,0.7533,2561.1,2560.8,3.06239232]
[1748303228395,0.7533,2561.1,2560.9,0.3728967]
[1748303228898,1.62813,2561.1,2560.9,0.3728967]
[1748303229837,1.62813,2561.1,2560.7,1.95338465]
[1748303230913,1.62813,2561.1,2560.6,2.68949562]
[1748303232447,1.62813,2561.1,2560.7,0.37275364]
[1748303233949,1.62813,2561.1,2560.6,2.68949562]
[1748303234137,0.7533,2561.1,2560.6,2.68949562]
[1748303237269,0.7533,2561.1,2560.7,0.37261756]
[1748303237465,0.7533,2561.1,2560.8,2.68949562]
[1748303237670,0.7998,2561.5,2561.0,2.68949562]
[1748303237834,4.089,2561.2,2560.8,0.7895]
[1748303238036,4.089,2561.2,2561.1,3.47899562]
[1748303239673,4.089,2561.2,2561.1,3.85161318]
[1748303243676,3.903,2561.5,2561.1,3.85161318]
[1748303244771,3.903,2561.5,2561.2,0.37261756]
[1748303244978,3.903,2561.5,2561.2,0.75777888]
[1748303245276,3.903,2561.6,2561.2,0.75777888]
[1748303246077,3.903,2561.6,2561.3,0.37261756]
[1748303247249,3.903,2561.6,2561.2,0.38516132]
[1748303249891,3.903,2561.6,2561.4,2.68949562]
[1748303251386,4.088,2561.7,2561.4,2.68949562]
[1748303251603,3.903,2561.6,2561.4,2.68949562]
[1748303261210,8.43,2562.8,2561.4,2.68949562]
[1748303261211,4.088,2562.0,2561.5,0.7573]
[1748303261411,3.902,2562.0,2561.9,2.68949562]
[1748303261580,4.088,2562.1,2561.9,2.68949562]
[1748303261904,7.99,2562.1,2561.9,2.68949562]
[1748303263903,0.7948,2562.4,2561.9,2.68949562]
[1748303264069,3.902,2562.1,2561.9,2.68949562]
[1748303264405,3.902,2562.1,2561.9,3.03623518]
[1748303265464,4.085,2562.3,2561.9,3.03623518]
[1748303265664,4.085,2562.3,2561.9,3.07526433]
[1748303265864,4.085,2562.3,2561.9,3.03623518]
[1748303266097,3.902,2562.2,2561.9,3.03623518]
[1748303266316,3.902,2562.2,2562.0,0.38141352]
[1748303267401,3.902,2562.2,2562.1,2.68949562]
[1748303269697,4.085,2562.3,2562.2,0.7676]
[1748303270020,4.085,2562.3,2562.2,8.7676]
[1748303270180,4.085,2562.3,2562.2,9.13822591]
[1748303270385,4.085,2562.3,2562.2,9.79568518]
[1748303271384,8.43,2562.8,2562.2,9.79568518]
[1748303271586,3.902,2562.7,2562.5,2.68949562]
[1748303273381,3.902,2562.7,2562.6,0.10338517]
[1748303273711,4.15346,2562.9,2562.6,0.10338517]
[1748303273712,0.06946,2562.9,2562.6,0.87248517]
[1748303273910,3.901,2562.8,2562.7,2.68949562]
[1748303274109,3.901,2562.8,2562.7,2.79287676]
[1748303275927,3.97046,2562.9,2562.7,2.79287676]
[1748303276407,3.97046,2562.9,2562.8,0.1033771]
[1748303277187,0.06946,2562.9,2562.8,0.1033771]